fUSD/lending_fUSD_20260319
["ID","MTS","AMOUNT","RATE_DAILY","PERIOD"]
[408602320,1773929445963,-166.66,8.571e-05,2]
[408602321,1773929445973,-500.0,8.575e-05,2]
[408602322,1773929445982,-500.0,8.604e-05,2]
[408602323,1773929445991,-9211.34798985,8.604e-05,2]
[408602324,1773929446000,-151.0,8.604e-05,2]
[408602325,1773929446010,-305.85,8.612e-05,2]
[408602326,1773929446019,-10228.32059096,8.615e-05,2]
[408602327,1773929446029,-1600.0,8.647e-05,2]
[408602328,1773929446039,-2774.24,8.647e-05,2]
[408602329,1773929446048,-151.0,8.647e-05,2]
[408602330,1773929446057,-9552.16786547,8.659e-05,2]
[408602331,1773929446067,-151.0,8.659e-05,2]
[408602332,1773929446077,-315.32,8.676e-05,2]
[408602333,1773929446086,-155.0,8.689e-05,2]
[408602334,1773929446096,-9905.5980765,8.714e-05,2]
[408602335,1773929446106,-151.0,8.714e-05,2]
[408602336,1773929446115,-500.0,8.767e-05,2]
[408602337,1773929446126,-10272.10520533,8.769e-05,2]
[408602338,1773929446135,-6169.84565207,8.824e-05,2]
[408602339,1773929446145,-1000.0,8.845e-05,2]
[408602340,1773929446154,-1000.0,8.845e-05,2]
[408602341,1773929446164,-1000.0,8.845e-05,2]
[408602342,1773929446181,-166.66,8.853e-05,2]
[408602343,1773929446193,-1000.0,8.931e-05,2]
[408602344,1773929446202,-388.15670323,8.931e-05,2]
[408602345,1773929446211,-1000.0,8.931e-05,2]
[408602346,1773929446220,-151.0,8.959e-05,2]
[408602347,1773929446230,-173.08,8.993e-05,2]
[408602349,1773929446240,-500.0,9.041e-05,2]
[408602351,1773929446250,-10000.0,9.123e-05,2]
[408602352,1773929446259,-315.32,9.132e-05,2]
[408602353,1773929446269,-166.66,9.136e-05,2]
[408602354,1773929446278,-433.0,9.16e-05,2]
[408602356,1773929446287,-587.0,9.16e-05,2]
[408602357,1773929446296,-587.0,9.16e-05,2]
[408602358,1773929446305,-180.0,9.16e-05,2]
[408602359,1773929446315,-2351.0,9.16e-05,2]
[408602360,1773929446324,-2197.0,9.169e-05,5]
[408602361,1773929446333,-152.0,9.22e-05,2]
[408602362,1773929446343,-2000.0,9.247e-05,2]
[408602363,1773929446352,-2465.0,9.264e-05,2]
[408602364,1773929446361,-414.915,9.264e-05,2]
[408602365,1773929446372,-6006.0,9.264e-05,2]
[408602366,1773929446687,-500.60325695,9.265e-05,2]
[408602367,1773929446697,-151.0,9.276e-05,2]
[408602368,1773929446707,-151.0,9.276e-05,2]
[408602369,1773929446718,-501.47592979,9.276e-05,2]
[408602370,1773929446728,-5226.528,9.285e-05,2]
[408602371,1773929446739,-231.208,9.285e-05,2]
[408602372,1773929446748,-500.0,9.315e-05,2]
[408602373,1773929446758,-500.0,9.322e-05,2]
[408602374,1773929446767,-520.9482015,9.393e-05,2]
[408602375,1773929446776,-1500.0,9.393e-05,2]
[408602376,1773929446786,-1503.63793267,9.393e-05,2]
[408602377,1773929446796,-166.66,9.419e-05,2]
[408602378,1773929446806,-150.0,9.464e-05,2]
[408602379,1773929446815,-216.0,9.464e-05,2]
[408602380,1773929446824,-200.0,9.464e-05,2]
[408602381,1773929446838,-250.0,9.464e-05,2]
[408602382,1773929446847,-236.977,9.464e-05,2]
[408602383,1773929446857,-224.167,9.464e-05,2]
[408602384,1773929446867,-219.836,9.464e-05,2]
[408602385,1773929446876,-162.351,9.464e-05,2]
[408602386,1773929446885,-250.0,9.464e-05,2]
[408602387,1773929446895,-150.139,9.464e-05,2]
[408602388,1773929446904,-193.143,9.464e-05,2]
[408602389,1773929446914,-250.0,9.464e-05,2]
[408602390,1773929446923,-214.469,9.464e-05,2]
[408602391,1773929446933,-179.0,9.464e-05,2]
[408602392,1773929446943,-238.397,9.464e-05,2]
[408602393,1773929446952,-1350.033,9.464e-05,2]
[408602394,1773929446961,-627.184,9.464e-05,2]
[408602395,1773929446971,-1044.0,9.464e-05,2]
[408602396,1773929446980,-150.369,9.464e-05,2]
[408602397,1773929446989,-1261.0,9.464e-05,2]
[408602398,1773929446999,-1222.168,9.464e-05,2]
[408602399,1773929447008,-924.0,9.464e-05,2]
[408602400,1773929447018,-151.0,9.464e-05,2]
[408602401,1773929447027,-1500.0,9.479e-05,2]
[408602402,1773929447040,-1500.0,9.479e-05,2]
[408602403,1773929447049,-155.0,9.479e-05,2]
[408602404,1773929447058,-473.0935161,9.589e-05,2]
[408602405,1773929447068,-315.32,9.589e-05,2]
[408602406,1773929447077,-30395.79694731,9.593e-05,2]
[408602407,1773929447086,-3739.52919373,9.644e-05,2]
[408602408,1773929447095,-722.74102257,9.685e-05,2]
[408602409,1773929447104,-297.0,9.7e-05,2]
[408602410,1773929447113,-166.66,9.702e-05,2]
[408602411,1773929447124,-1600.0,9.728e-05,2]
[408602412,1773929447134,-205.0,9.8e-05,2]
[408602413,1773929447144,-205.284129,9.8e-05,2]
[408602414,1773929447153,-366.676832,9.8e-05,2]
[408602415,1773929447163,-192.865939,9.8e-05,2]
[408602416,1773929447172,-311.904634,9.8e-05,2]
[408602417,1773929447181,-371.007957,9.8e-05,2]
[408602418,1773929447190,-329.015009,9.8e-05,2]
[408602419,1773929447199,-212.546137,9.8e-05,2]
[408602420,1773929447208,-257.113926,9.8e-05,2]
[408602421,1773929447217,-503.01696728,9.87e-05,2]
[408602422,1773929447227,-1235.08,9.9e-05,2]
[408602423,1773929447239,-2000.0,9.941e-05,2]
[408602424,1773929447248,-166.66,9.985e-05,2]
[408602425,1773929447257,-151.0,9.997e-05,2]
[408602426,1773929447267,-48534.0,0.0001,2]
[408602427,1773929447276,-150.05,0.0001,2]
[408602428,1773929447285,-9478.41325372,0.0001,2]
[408602429,1773929447295,-1942.44615155,0.0001,2]
[408602430,1773929447304,-2751.13382722,0.0001,2]
[408602431,1773929447314,-12700.81991089,0.0001,2]
[408602432,1773929447323,-70438.0,0.0001,2]
[408602433,1773929447332,-1914.11893897,0.0001,2]
[408602434,1773929447342,-5097.81384484,0.0001,2]
[408602435,1773929447351,-4195.55130779,0.0001,2]
[408602436,1773929447360,-4646.68257628,0.0001,2]
[408602437,1773929447373,-4689.98798524,0.0001,2]
[408602438,1773929447383,-152.49451456,0.0001,2]
[408602439,1773929447392,-157.95555991,0.0001,2]
[408602440,1773929447401,-156.61509703,0.0001,2]
[408602441,1773929447411,-664.14412882,0.0001,2]
[408602442,1773929447420,-664.14412882,0.0001,2]
[408602443,1773929447433,-664.14412882,0.0001,2]
[408602444,1773929447444,-320.42877283,0.0001,2]
[408602445,1773929447453,-151.0,0.0001,2]
[408602446,1773929447463,-151.0,0.0001,2]
[408602447,1773929447474,-289.978041,0.0001,2]
[408602448,1773929447483,-500.0,0.0001,2]
[408602449,1773929447493,-500.0,0.0001,2]
[408602450,1773929447504,-500.0,0.0001,2]
[408602451,1773929447514,-500.0,0.0001,2]
[408602452,1773929447524,-151.0,0.0001,2]
[408602453,1773929447534,-500.0,0.0001,2]
[408602454,1773929447542,-151.0,0.0001,2]
[408602455,1773929447551,-500.0,0.0001,2]
[408602456,1773929447560,-151.0,0.0001,2]
[408602457,1773929447569,-500.0,0.0001,2]
[408602458,1773929447578,-151.0,0.0001,2]
[408602459,1773929447587,-500.0,0.0001,2]
[408602460,1773929447597,-200.0,0.0001,3]
[408602461,1773929447606,-151.0,0.0001,2]
[408602462,1773929447615,-500.0,0.0001,2]
[408602463,1773929447627,-151.0,0.0001,2]
[408602464,1773929447637,-500.0,0.0001,2]
[408602465,1773929447646,-151.0,0.0001,2]
[408602466,1773929447656,-500.0,0.0001,2]
[408602467,1773929447666,-151.0,0.0001,2]
[408602468,1773929447675,-151.0,0.0001,2]
[408602469,1773929447684,-151.0,0.0001,2]
[408602470,1773929447693,-151.0,0.0001,2]
[408602471,1773929447703,-500.0,0.0001,2]
[408602472,1773929447712,-200.0,0.0001,2]
[408602473,1773929447722,-500.0,0.0001,2]
[408602474,1773929447731,-151.0,0.0001,2]
[408602475,1773929447740,-151.0,0.0001,2]
[408602476,1773929447757,-151.0,0.0001,2]
[408602477,1773929447770,-500.0,0.0001,2]
[408602478,1773929447780,-500.0,0.0001,2]
[408602479,1773929447790,-151.0,0.0001,2]
[408602480,1773929447800,-151.0,0.0001,2]
[408602481,1773929447812,-151.0,0.0001,2]
[408602482,1773929447821,-151.0,0.0001,2]
[408602483,1773929447831,-151.0,0.0001,2]
[408602484,1773929447841,-151.0,0.0001,2]
[408602485,1773929447851,-151.0,0.0001,2]
[408602486,1773929447861,-151.0,0.0001,2]
[408602487,1773929447871,-151.0,0.0001,2]
[408602488,1773929447881,-151.0,0.0001,2]
[408602489,1773929447891,-500.0,0.0001,2]
[408602490,1773929447901,-151.0,0.0001,2]
[408602491,1773929447911,-500.0,0.0001,2]
[408602492,1773929447921,-151.0,0.0001,2]
[408602493,1773929447931,-500.0,0.0001,2]
[408602494,1773929447941,-151.0,0.0001,2]
[408602495,1773929447951,-500.0,0.0001,2]
[408602496,1773929447961,-151.0,0.0001,2]
[408602497,1773929447971,-500.0,0.0001,2]
[408602498,1773929447982,-151.0,0.0001,2]
[408602499,1773929447991,-500.0,0.0001,2]
[408602500,1773929448001,-151.0,0.0001,2]
[408602501,1773929448011,-500.0,0.0001,2]
[408602502,1773929448025,-151.0,0.0001,2]
[408602503,1773929448036,-500.0,0.0001,2]
[408602504,1773929448045,-151.0,0.0001,2]
[408602505,1773929448055,-500.0,0.0001,2]
[408602506,1773929448065,-2206.24763318,0.0001,2]
[408602507,1773929448075,-151.0,0.0001,2]
[408602508,1773929448084,-586.89232069,0.0001,2]
[408602509,1773929448094,-151.0,0.0001,2]
[408602510,1773929448105,-644.32877556,0.0001,2]
[408602511,1773929448115,-1297.4577043,0.0001,2]
[408602512,1773929448126,-2000.0,0.00010027,2]
[408602513,1773929448135,-2000.0,0.00010027,2]
[408602514,1773929448145,-315.32,0.00010046,2]
[408602515,1773929448155,-369.81773808,0.00010049,2]
[408602516,1773929448165,-736.0,0.00010076,2]
[408602517,1773929448176,-823.0,0.00010076,2]
[408602518,1773929448186,-823.0,0.00010076,2]
[408602519,1773929448196,-3292.0,0.00010076,2]
[408602520,1773929448206,-5533.0,0.000101,3]
[408602521,1773929448216,-608.0,0.00010169,2]
[408602522,1773929448226,-1000.0,0.00010172,2]
[408602523,1773929448236,-2000.0,0.00010274,2]
[408602524,1773929448247,-215.92839849,0.00010299,2]
[408602525,1773929448256,-5533.0,0.000103,5]
[408602526,1773929448266,-1000.0,0.00010489,2]
[408602527,1773929448276,-315.32,0.00010502,2]
[408602528,1773929448286,-200.0,0.00010548,2]
[408602529,1773929448296,-1000.0,0.00010574,2]
[408602530,1773929448306,-1000.0,0.00010574,2]
[408602531,1773929448315,-265.68607319,0.00010698,7]
[408602532,1773929448326,-269.83423346,0.000107,2]
[408602533,1773929448336,-1033.77372293,0.000108,2]
[408602534,1773929448346,-1600.0,0.00010809,2]
[408602535,1773929448356,-151.0,0.00010897,2]
[408602536,1773929448365,-400.0,0.000109,3]
[408602537,1773929448376,-3777.07743979,0.000109,2]
[408602538,1773929448721,-377.00008373,0.000109,2]
[408602539,1773929448740,-2749.46003264,0.000109,2]
[408602540,1773929448750,-6903.53755612,0.000109,2]
[408602541,1773929448759,-2320.0,0.00010949,5]
[408602542,1773929448769,-208.67945104,0.00010959,2]
[408602543,1773929448778,-150.0,0.00010959,2]
[408602544,1773929448788,-150.0,0.00010959,2]
[408602545,1773929448798,-166.66,0.00010959,2]
[408602546,1773929448808,-7836.06,0.00010959,2]
[408602547,1773929448819,-185.19,0.00010959,2]
[408602548,1773929448831,-151.0,0.00010959,2]
[408602549,1773929448841,-151.0,0.00010959,2]
[408602550,1773929448850,-151.0,0.00010959,2]
[408602551,1773929448860,-151.0,0.00010959,2]
[408602552,1773929448871,-315.32,0.00010959,2]
[408602553,1773929448880,-500.0,0.00010959,2]
[408602554,1773929448890,-292.79892497,0.00010959,2]
[408602555,1773929448899,-500.0,0.00010959,2]
[408602556,1773929448909,-500.0,0.00010959,2]
[408602557,1773929448919,-500.0,0.00010959,2]
[408602558,1773929448928,-500.0,0.00010959,2]
[408602559,1773929448938,-998.70448244,0.00010999,2]
[408602560,1773929448947,-2357.70538484,0.00010999,2]
[408602561,1773929448957,-300.0,0.00011,2]
[408602562,1773929448967,-1400.0,0.00011,2]
[408602563,1773929448978,-2324.0,0.0001101,5]
[408602564,1773929448987,-155.0,0.00011059,2]
[408602565,1773929448996,-166.66,0.00011068,2]
[408602566,1773929449006,-1252.0,0.00011083,2]
[408602567,1773929449016,-437.0,0.00011084,2]
[408602568,1773929449026,-1152.0,0.00011084,2]
[408602569,1773929449036,-4609.0,0.00011084,2]
[408602570,1773929449045,-305.85,0.00011095,2]
[408602571,1773929449055,-151.0,0.00011096,2]
[408602572,1773929449065,-200.0,0.00011096,2]
[408602573,1773929449074,-29432.82454677,0.00011099,2]
[408602574,1773929449084,-29432.82454671,0.00011099,2]
[408602575,1773929449093,-201.69535389,0.00011099,2]
[408602576,1773929449161,-151.0,0.00011099,2]
[408602577,1773929449170,-151.0,0.00011099,2]
[408602578,1773929449179,-166.66,0.00011178,2]
[408602579,1773929449189,-7195.77954624,0.00011232,2]
[408602580,1773929449198,-163.68,0.00011233,2]
[408602581,1773929449208,-166.66,0.00011288,2]
[408602582,1773929449217,-2000.0,0.00011301,2]
[408602583,1773929449226,-500.0,0.00011332,2]
[408602584,1773929449236,-500.0,0.00011332,2]
[408602585,1773929449246,-500.0,0.00011332,2]
[408602586,1773929449256,-500.0,0.00011332,2]
[408602587,1773929449265,-500.0,0.00011332,2]
[408602588,1773929449274,-500.0,0.00011332,2]
[408602589,1773929449283,-707.0,0.00011332,2]
[408602590,1773929449293,-166.66,0.00011397,2]
[408602591,1773929449304,-1058.675,0.00011407,2]
[408602592,1773929449314,-3510.2501,0.00011407,2]
[408602593,1773929449323,-315.32,0.00011416,2]
[408602594,1773929449333,-166.66,0.00011507,2]
[408602595,1773929449343,-3451.58,0.00011507,2]
[408602596,1773929449352,-151.0,0.00011507,2]
[408602597,1773929449365,-151.0,0.00011507,2]
[408602598,1773929449384,-500.0,0.00011575,2]
[408602599,1773929449397,-500.0,0.00011575,2]
[408602600,1773929449408,-500.0,0.00011575,2]
[408602601,1773929449418,-500.0,0.00011575,2]
[408602602,1773929449430,-500.0,0.00011575,2]
[408602603,1773929449440,-500.0,0.00011575,2]
[408602604,1773929449450,-500.0,0.00011575,2]
[408602605,1773929449460,-500.0,0.00011575,2]
[408602606,1773929449470,-500.0,0.00011575,2]
[408602607,1773929449479,-500.0,0.00011575,2]
[408602608,1773929449489,-500.0,0.00011575,2]
[408602609,1773929449499,-612.39,0.00011575,2]
[408602610,1773929449508,-500.0,0.00011575,2]
[408602611,1773929449519,-500.0,0.00011575,2]
[408602612,1773929449528,-423.72,0.00011575,2]
[408602613,1773929449537,-169.11,0.00011644,2]
[408602614,1773929449547,-200.0,0.00011644,2]
[408602615,1773929449556,-737.75943688,0.00011653,2]
[408602616,1773929449565,-1681.7112387,0.00011747,2]
[408602617,1773929449579,-3108.29999986,0.00011747,2]
[408602618,1773929449590,-764.86298086,0.00011747,2]
[408602619,1773929449600,-284.821178,0.0001176,2]
[408602620,1773929449609,-361.623637,0.0001176,2]
[408602621,1773929449618,-214.261604,0.0001176,2]
[408602622,1773929449628,-265.682671,0.0001176,2]
[408602623,1773929449637,-315.32,0.00011872,2]
[408602624,1773929449646,-1600.0,0.0001189,2]
[408602625,1773929449655,-152.02,0.00011947,2]
[408602626,1773929449665,-350.0,0.00011953,2]
[408602627,1773929449674,-871.10968032,0.00012,3]
[408602628,1773929449711,-151.0,0.0001,2]
[408602629,1773929449721,-320.42877283,0.0001,2]
[408602630,1773929449730,-589.11613381,0.00012,3]
[408602631,1773929449742,-108.77418587,0.00012,3]
[408602632,1773929449751,-350.0,0.00012035,2]
[408602633,1773929449759,-45.21940827,0.00012062,2]
[408602634,1773929449772,-567.25542463,0.00012062,2]
[408602635,1773929449781,-663.3740444,0.00012106,2]
[408602636,1773929449792,-699.27,0.00012106,2]
[408602637,1773929449807,-1411.5959556,0.00012106,2]
[408602638,1773929449816,-350.0,0.00012107,2]
[408602639,1773929449826,-1304.31390353,0.00012162,2]
[408602640,1773929449835,-500.0,0.00012192,2]
[408602641,1773929449844,-200.0,0.00012192,2]
[408602642,1773929449853,-1613.0,0.00012192,2]
[408602643,1773929449868,-6120.0,0.00012192,2]
[408602644,1773929449879,-37818.90023882,0.00012245,2]
[408602645,1773929449888,-2465.0,0.00012264,2]
[408602646,1773929449898,-414.0,0.00012264,2]
[408602647,1773929449907,-6006.0,0.00012264,2]
[408602648,1773929449916,-1000.0,0.00012284,2]
[408602649,1773929449925,-151.0,0.00012289,2]
[408602650,1773929449936,-150.0,0.0001232,2]
[408602651,1773929449945,-150.0,0.00012323,2]
[408602652,1773929449955,-2000.0,0.00012329,2]
[408602653,1773929449964,-219.506138,0.00012329,2]
[408602654,1773929449974,-219.506138,0.00012329,2]
[408602655,1773929449984,-219.506138,0.00012329,2]
[408602656,1773929449994,-219.506138,0.00012329,2]
[408602657,1773929450004,-219.506138,0.00012329,2]
[408602658,1773929450014,-219.506138,0.00012329,2]
[408602659,1773929450024,-219.506138,0.00012329,2]
[408602660,1773929450033,-219.506138,0.00012329,2]
[408602661,1773929450043,-219.506138,0.00012329,2]
[408602662,1773929450052,-219.506138,0.00012329,2]
[408602663,1773929450062,-219.506138,0.00012329,2]
[408602664,1773929450071,-219.506138,0.00012329,2]
[408602665,1773929450081,-219.506138,0.00012329,2]
[408602666,1773929450090,-219.506138,0.00012329,2]
[408602667,1773929450100,-219.506138,0.00012329,2]
[408602668,1773929450109,-219.506138,0.00012329,2]
[408602669,1773929450119,-219.506138,0.00012329,2]
[408602670,1773929450128,-219.506138,0.00012329,2]
[408602671,1773929450138,-219.506138,0.00012329,2]
[408602672,1773929450147,-219.506128,0.00012329,2]
[408602673,1773929450157,-315.32,0.00012329,2]
[408602674,1773929450166,-1000.0,0.00012338,2]
[408602675,1773929450176,-150.0,0.00012358,2]
[408602676,1773929450186,-150.0,0.00012373,2]
[408602677,1773929450196,-150.0,0.00012404,2]
[408602678,1773929450205,-150.0,0.00012415,2]
[408602679,1773929450214,-151.0,0.00012461,2]
[408602680,1773929450224,-150.0,0.00012464,2]
[408602681,1773929450234,-150.0,0.00012464,2]
[408602682,1773929450243,-150.0,0.00012464,2]
[408602683,1773929450253,-150.0,0.00012464,2]
[408602684,1773929450262,-150.0,0.00012464,2]
[408602685,1773929450272,-150.0,0.00012464,2]
[408602686,1773929450283,-1344.0,0.00012464,2]
[408602687,1773929450297,-620.0,0.00012464,2]
[408602688,1773929450306,-1044.0,0.00012464,2]
[408602689,1773929450316,-150.0,0.00012464,2]
[408602690,1773929450325,-1261.0,0.00012464,2]
[408602691,1773929450335,-1215.0,0.00012464,2]
[408602692,1773929450344,-924.0,0.00012464,2]
[408602693,1773929450354,-783.16,0.00012468,2]
[408602694,1773929450363,-725.19,0.00012468,2]
[408602695,1773929450373,-879.01,0.00012468,2]
[408602696,1773929450384,-879.01,0.00012468,2]
[408602697,1773929450393,-879.01,0.00012468,2]
[408602698,1773929450403,-882.52,0.00012468,2]
[408602699,1773929450412,-309.37821434,0.000125,2]
[408602700,1773929450423,-305.85,0.00012538,2]
[408602701,1773929450436,-350.0,0.00012734,2]
[408602702,1773929450446,-350.0,0.00012735,2]
[408602703,1773929450698,-200.0,0.0001274,2]
[408602704,1773929450721,-628.02275923,0.00012743,2]
[408602705,1773929450738,-1600.0,0.0001297,2]
[408602706,1773929450748,-1000.0,0.00013,13]
[408602707,1773929450758,-5641.13925074,0.00013,2]
[408602708,1773929450767,-16585.81719988,0.00013,15]
[408602709,1773929450780,-442.29976081,0.00013,2]
[408602710,1773929450796,-160.0,0.00013048,2]
[408602711,1773929450806,-160.0,0.00013048,2]
[408602712,1773929450817,-979.16666667,0.00013048,2]
[408602713,1773929450826,-160.0,0.00013048,2]
[408602714,1773929450836,-3169.92326334,0.0001305,2]
[408602715,1773929450848,-37818.90023882,0.00013159,2]
[408602716,1773929450858,-169.11,0.00013189,2]
[408602717,1773929450868,-261.0,0.00013192,2]
[408602718,1773929450879,-200.0,0.00013288,2]
[408602719,1773929450889,-507.0,0.00013333,2]
[408602720,1773929450898,-350.0,0.00013358,2]
[408602721,1773929450908,-287.0,0.00013411,2]
[408602722,1773929450918,-3240.0,0.00013425,2]
[408602723,1773929450928,-350.0,0.00013441,2]
[408602724,1773929450938,-1000.0,0.000135,2]
[408602725,1773929450948,-350.0,0.00013512,2]
[408602726,1773929450958,-350.0,0.00013539,2]
[408602727,1773929450967,-176.9670118,0.00013573,2]
[408602728,1773929450976,-2860.0,0.00013671,2]
[408602729,1773929450986,-1297.4577043,0.0001369,2]
[408602730,1773929450995,-151.0,0.00013692,2]
[408602731,1773929451005,-150.75759761,0.00013695,2]
[408602732,1773929451016,-500.0,0.00013695,2]
[408602733,1773929451026,-500.0,0.00013695,2]
[408602734,1773929451035,-567.51480904,0.00013695,2]
[408602735,1773929451045,-500.0,0.00013695,2]
[408602736,1773929451058,-500.0,0.00013695,2]
[408602737,1773929451070,-500.0,0.00013695,2]
[408602738,1773929451080,-500.0,0.00013695,2]
[408602739,1773929451089,-552.74589158,0.00013695,2]
[408602740,1773929451099,-500.0,0.00013695,2]
[408602741,1773929451109,-161.57907331,0.00013695,2]
[408602742,1773929451119,-500.0,0.00013695,2]
[408602743,1773929451129,-500.0,0.00013695,2]
[408602744,1773929451139,-500.0,0.00013695,2]
[408602745,1773929451148,-756.0,0.00013695,2]
[408602746,1773929451157,-500.0,0.00013695,2]
[408602747,1773929451166,-756.0,0.00013695,2]
[408602748,1773929451177,-512.329216,0.00013695,2]
[408602749,1773929451187,-500.0,0.00013695,2]
[408602750,1773929451197,-756.0,0.00013695,2]
[408602751,1773929451206,-756.0,0.00013695,2]
[408602752,1773929451215,-500.0,0.00013695,2]
[408602753,1773929451225,-500.0,0.00013695,2]
[408602754,1773929451235,-756.0,0.00013695,2]
[408602755,1773929451244,-756.0,0.00013695,2]
[408602756,1773929451254,-500.0,0.00013695,2]
[408602757,1773929451264,-756.0,0.00013695,2]
[408602758,1773929451273,-500.0,0.00013695,2]
[408602759,1773929451282,-500.0,0.00013695,2]
[408602760,1773929451293,-500.0,0.00013695,2]
[408602761,1773929451302,-500.0,0.00013695,2]
[408602762,1773929451311,-756.0,0.00013695,2]
[408602763,1773929451321,-500.0,0.00013695,2]
[408602764,1773929451331,-500.0,0.00013695,2]
[408602765,1773929451341,-500.0,0.00013695,2]
[408602766,1773929451350,-500.0,0.00013695,2]
[408602767,1773929451360,-756.0,0.00013695,2]
[408602768,1773929451370,-214.94352647,0.00013695,2]
[408602769,1773929451382,-500.0,0.00013695,2]
[408602770,1773929451392,-500.0,0.00013695,2]
[408602771,1773929451402,-500.0,0.00013695,2]
[408602772,1773929451413,-756.0,0.00013695,2]
[408602773,1773929451423,-500.0,0.00013695,2]
[408602774,1773929451435,-500.0,0.00013695,2]
[408602775,1773929451444,-255.16033753,0.00013695,2]
[408602776,1773929451464,-756.0,0.00013695,2]
[408602777,1773929451475,-500.0,0.00013695,2]
[408602778,1773929451485,-500.0,0.00013695,2]
[408602779,1773929451497,-240.64677093,0.00013695,2]
[408602780,1773929451507,-756.0,0.00013695,2]
[408602781,1773929451516,-500.0,0.00013695,2]
[408602782,1773929451527,-756.0,0.00013695,2]
[408602783,1773929451537,-500.0,0.00013695,2]
[408602784,1773929451547,-500.0,0.00013695,2]
[408602785,1773929451556,-756.0,0.00013695,2]
[408602786,1773929451566,-500.0,0.00013695,2]
[408602787,1773929451576,-500.0,0.00013695,2]
[408602788,1773929451586,-756.0,0.00013695,2]
[408602789,1773929451595,-500.0,0.00013695,2]
[408602790,1773929451604,-756.0,0.00013695,2]
[408602791,1773929451614,-500.0,0.00013695,2]
[408602792,1773929451626,-500.0,0.00013695,2]
[408602793,1773929451636,-500.0,0.00013695,2]
[408602794,1773929451645,-500.0,0.00013695,2]
[408602795,1773929451657,-500.0,0.00013695,2]
[408602796,1773929451667,-756.0,0.00013695,2]
[408602797,1773929451676,-500.0,0.00013695,2]
[408602798,1773929451686,-500.0,0.00013695,2]
[408602799,1773929451696,-261.00219026,0.00013695,2]
[408602800,1773929451705,-500.0,0.00013695,2]
[408602801,1773929451715,-495.0,0.00013695,2]
[408602802,1773929451724,-500.0,0.00013695,2]
[408602803,1773929451738,-500.0,0.00013695,2]
[408602804,1773929451747,-495.0,0.00013695,2]
[408602805,1773929451757,-500.0,0.00013695,2]
[408602806,1773929451767,-500.0,0.00013695,2]
[408602807,1773929451777,-495.0,0.00013695,2]
[408602808,1773929451787,-500.0,0.00013695,2]
[408602809,1773929451797,-495.0,0.00013695,2]
[408602810,1773929451807,-756.0,0.00013695,2]
[408602811,1773929451823,-500.0,0.00013695,2]
[408602812,1773929451833,-495.0,0.00013695,2]
[408602813,1773929451844,-500.0,0.00013695,2]
[408602814,1773929451853,-364.3001579,0.00013695,2]
[408602815,1773929451864,-495.0,0.00013695,2]
[408602816,1773929451876,-495.0,0.00013695,2]
[408602817,1773929451886,-495.0,0.00013695,2]
[408602818,1773929451896,-495.0,0.00013695,2]
[408602819,1773929451906,-500.0,0.00013695,2]
[408602820,1773929451917,-495.0,0.00013695,2]
[408602821,1773929451927,-756.0,0.00013695,2]
[408602822,1773929451937,-495.0,0.00013695,2]